bitfinex-derivatives/quotes_BTCF0:USTF0_20210703
["timestamp","ask_amount","ask_price","bid_price","bid_amount"]
[1625277154918,0.06937376,33685.0,33684.0,0.00697587]
[1625277155219,0.06937376,33685.0,33680.0,0.00698307]
[1625277155371,0.27850523,33685.0,33680.0,0.00698307]
[1625277155520,0.01036509,33684.0,33680.0,0.00698307]
[1625277155822,0.48115088,33681.0,33680.0,0.00698307]
[1625277156022,0.78615088,33681.0,33680.0,0.00698307]
[1625277156172,0.9950243,33681.0,33680.0,0.00698307]
[1625277156274,1.00539051,33681.0,33673.0,0.24057544]
[1625277156373,1.00539051,33681.0,33673.0,0.29957544]
[1625277156626,0.27816832,33680.0,33674.0,0.0069844]
[1625277156725,0.27816832,33680.0,33674.0,0.0659844]
[1625277156974,4.9813,33675.0,33674.0,0.0659844]
[1625277157075,4.9813,33675.0,33674.0,0.059]
[1625277157323,5.05065288,33675.0,33674.0,0.06599391]
[1625277157923,5.29122832,33675.0,33674.0,0.06599391]
[1625277158123,5.28087544,33675.0,33674.0,0.059]
[1625277160479,5.28087544,33675.0,33673.0,0.24057544]
[1625277160577,5.28087544,33675.0,33673.0,0.29957544]
[1625277163832,5.28087544,33675.0,33673.0,0.24057544]
[1625277175553,0.24057544,33675.0,33673.0,0.24057544]
[1625277176103,4.07347544,33675.0,33673.0,0.24057544]
[1625277177406,4.13247544,33675.0,33673.0,0.24057544]
[1625277182171,0.29957544,33675.0,33673.0,0.24057544]
[1625277182518,0.29957544,33675.0,33674.0,0.00698461]
[1625277183769,0.24057544,33675.0,33674.0,0.00698461]
[1625277184520,0.25093981,33675.0,33674.0,0.00698461]
[1625277185624,0.25093981,33675.0,33674.0,0.22423461]
[1625277185722,0.24057544,33675.0,33674.0,0.28323461]
[1625277185872,0.24057544,33675.0,33674.0,0.34223461]
[1625277188880,0.24057544,33675.0,33674.0,0.12498461]
[1625277188881,4.65337544,33675.0,33674.0,0.12498461]
[1625277188978,0.24057544,33675.0,33674.0,0.12498461]
[1625277200865,0.24057544,33675.0,33674.0,0.38390461]
[1625277204671,0.24057544,33681.0,33674.0,0.38390461]
[1625277204772,0.45011931,33684.0,33674.0,0.38390461]
[1625277204970,0.45011931,33684.0,33675.0,0.00699761]
[1625277205071,0.45011931,33684.0,33675.0,0.12499761]
[1625277205270,0.20954387,33684.0,33675.0,0.12499761]
[1625277205471,0.20954387,33684.0,33676.0,0.0069973]
[1625277205572,0.20967232,33687.0,33676.0,0.1249973]
[1625277205972,0.20967232,33687.0,33677.0,0.00699721]
[1625277206073,0.20967232,33687.0,33677.0,0.12499721]
[1625277206174,1.19207544,33688.0,33686.0,0.48115088]
[1625277206274,1.25107544,33688.0,33686.0,0.74031088]
[1625277206473,0.24057544,33688.0,33686.0,0.74031088]
[1625277206574,0.24057544,33688.0,33687.0,0.00699659]
[1625277206674,0.24057544,33688.0,33687.0,0.06599659]
[1625277210278,0.24057544,33688.0,33687.0,0.00699659]
[1625277210729,0.24057544,33688.0,33686.0,0.48115088]
[1625277212133,0.24057544,33687.0,33686.0,0.48115088]
[1625277212586,0.24057544,33687.0,33686.0,0.48814723]
[1625277212934,4.83117544,33687.0,33686.0,0.48814723]
[1625277214991,0.24057544,33687.0,33686.0,0.48814723]
[1625277217948,0.24057544,33687.0,33686.0,0.48115088]
[1625277218197,0.24057544,33687.0,33686.0,0.48815432]
[1625277224166,4.40517544,33687.0,33686.0,0.48815432]
[1625277229771,0.24057544,33687.0,33686.0,0.48815432]
[1625277231075,3.89897544,33687.0,33686.0,0.48815432]
[1625277232578,3.90929592,33687.0,33686.0,0.48815432]
[1625277237841,0.25089592,33687.0,33686.0,0.48815432]
[1625277239343,4.44169592,33687.0,33686.0,0.48815432]
[1625277240648,0.25089592,33687.0,33686.0,0.48815432]
[1625277240747,0.25089592,33687.0,33686.0,0.69162432]
[1625277242449,0.01032048,33687.0,33686.0,0.69162432]
[1625277243053,0.01029232,33692.0,33686.0,0.69162432]
[1625277243152,0.12829232,33692.0,33686.0,0.69162432]
[1625277243354,0.12829232,33692.0,33687.0,0.00702767]
[1625277243603,0.01029241,33691.0,33687.0,0.00702767]
[1625277243703,4.8013,33688.0,33687.0,0.00702767]
[1625277244104,0.01029241,33688.0,33687.0,0.00702767]
[1625277244453,0.01029239,33692.0,33687.0,0.22933767]
[1625277244555,0.12829239,33692.0,33687.0,0.22933767]
[1625277244660,0.01029236,33688.0,33687.0,0.22933767]
[1625277244955,0.01029236,33691.0,33687.0,0.22933767]
[1625277245055,0.06929236,33691.0,33687.0,0.22933767]
[1625277245158,0.059,33691.0,33688.0,0.00702767]
[1625277245457,0.01029233,33690.0,33688.0,0.00702767]
[1625277245659,0.06929233,33690.0,33688.0,0.00702767]
[1625277245958,0.01029233,33689.0,33688.0,0.00702767]
[1625277246062,0.06929233,33689.0,33688.0,0.00702767]
[1625277253374,0.06929233,33689.0,33688.0,0.06602767]
[1625277253724,0.059,33689.0,33688.0,0.06602767]
[1625277254177,0.059,33689.0,33688.0,5.26422767]
[1625277254474,0.059,33689.0,33688.0,5.50480311]
[1625277254627,0.20994108,33697.0,33688.0,5.50480311]
[1625277254827,0.26894108,33697.0,33688.0,5.56380311]
[1625277255027,0.01028598,33696.0,33689.0,0.007029]
[1625277255228,0.01028598,33696.0,33689.0,0.125029]
[1625277255330,0.9128,33701.0,33695.0,4.5571]
[1625277255331,0.21006631,33699.0,33695.0,4.5571]
[1625277255480,0.26906631,33699.0,33695.0,4.89786]
[1625277255577,0.26906631,33699.0,33696.0,0.00702868]
[1625277255827,0.01028558,33698.0,33696.0,0.06602868]
[1625277256130,1.12298128,33701.0,33697.0,0.00702866]
[1625277256277,1.18198128,33701.0,33697.0,0.06602866]
[1625277256378,0.01028556,33700.0,33697.0,0.06602866]
[1625277256529,0.06928556,33700.0,33699.0,0.72172632]
[1625277257231,0.2794354,33700.0,33699.0,0.72172632]
[1625277258382,0.2794354,33700.0,33699.0,0.78072632]
[1625277259233,0.2794354,33700.0,33699.0,0.72172632]
[1625277259636,5.4754354,33700.0,33699.0,0.72172632]
[1625277260288,5.5344354,33700.0,33699.0,0.48115088]
[1625277260537,5.77501084,33700.0,33699.0,0.24057544]
[1625277261839,5.77501084,33700.0,33690.0,0.24057544]
[1625277261939,6.02739084,33700.0,33690.0,0.24057544]
[1625277262039,6.02739084,33700.0,33690.0,0.35857544]
[1625277262291,0.01028194,33699.0,33691.0,0.00703365]
[1625277262390,0.06928194,33699.0,33691.0,0.06603365]
[1625277262490,0.21040096,33695.0,33694.0,0.24057544]
[1625277263193,0.21040096,33695.0,33694.0,0.29957544]
[1625277263795,0.21056273,33696.0,33694.0,0.29957544]
[1625277263894,0.21056273,33696.0,33694.0,0.3066113]
[1625277264197,0.21056273,33696.0,33694.0,0.29957544]
[1625277264497,0.24057544,33695.0,33694.0,0.29957544]
[1625277264596,0.24057544,33695.0,33694.0,0.24057544]
[1625277265648,0.24057544,33695.0,33694.0,0.24761148]
[1625277265748,0.24057544,33695.0,33694.0,0.30661148]
[1625277266698,0.24057544,33695.0,33694.0,0.24761148]
[1625277267149,0.24057544,33695.0,33694.0,0.30661148]
[1625277267598,0.24057544,33695.0,33694.0,0.36561148]
[1625277269455,0.24057544,33700.0,33694.0,0.36561148]
[1625277269553,0.24057544,33700.0,33694.0,0.59253148]
[1625277269953,0.24057544,33700.0,33695.0,0.0070374]
[1625277270103,0.24057544,33700.0,33695.0,0.1250374]
[1625277270454,0.24057544,33700.0,33696.0,0.00703727]
[1625277270554,0.24057544,33700.0,33699.0,0.24057544]
[1625277270704,0.24057544,33700.0,33699.0,0.35857544]
[1625277270954,0.24057544,33700.0,33699.0,0.36561271]
[1625277272712,0.24057544,33700.0,33699.0,0.30661271]
[1625277273862,0.24057544,33700.0,33699.0,0.36561271]
[1625277282784,0.24057544,33700.0,33699.0,0.30661271]
[1625277283136,3.91277544,33700.0,33699.0,0.30661271]
[1625277284289,0.24057544,33700.0,33699.0,0.30661271]
[1625277289049,0.24057544,33700.0,33699.0,0.36561271]
[1625277298164,0.2508398,33700.0,33699.0,0.36561271]
[1625277298466,0.24057544,33700.0,33699.0,0.36561271]
[1625277299471,0.25083986,33700.0,33699.0,0.36561271]
[1625277302028,0.25083986,33700.0,33699.0,0.30661271]
[1625277309143,0.30983986,33700.0,33699.0,0.06603727]
[1625277309246,0.30983986,33700.0,33699.0,3.727e-05]
[1625277309446,0.36883986,33700.0,33699.0,3.727e-05]
[1625277309745,0.57929616,33700.0,33693.0,0.00703191]
[1625277309844,0.118,33698.0,33693.0,0.00703191]
[1625277310196,0.01028154,33697.0,33686.0,0.00703223]
[1625277310295,0.06928154,33697.0,33686.0,0.00703223]
[1625277310448,0.06928154,33697.0,33681.0,2.07447501]
[1625277310449,0.21042384,33694.0,33682.0,0.61321876]
[1625277310545,0.51559384,33694.0,33682.0,0.61321876]
[1625277310745,0.01028176,33693.0,33687.0,0.00703241]
[1625277310895,5.40685088,33688.0,33687.0,0.00703241]
[1625277310996,5.40685088,33688.0,33686.0,0.24760798]
[1625277311296,5.40685088,33688.0,33687.0,0.00703261]
[1625277313100,5.40685088,33688.0,33683.0,0.00703337]
[1625277313197,5.40685088,33688.0,33683.0,0.06603337]
[1625277313646,5.46585088,33688.0,33683.0,0.059]
[1625277314197,5.46585088,33688.0,33682.0,0.24057544]
[1625277314298,5.46585088,33688.0,33682.0,0.29957544]
[1625277314801,0.24057544,33683.0,33682.0,0.29957544]
[1625277314901,0.45961544,33683.0,33682.0,0.29957544]
[1625277317505,0.45961544,33683.0,33682.0,0.24057544]
[1625277318259,0.51861544,33683.0,33682.0,0.24057544]
[1625277318556,0.51861544,33683.0,33682.0,0.29957544]
[1625277319108,0.51861544,33683.0,33682.0,0.24057544]
[1625277322364,0.51861544,33683.0,33675.0,0.24057544]
[1625277322465,4.6061,33676.0,33675.0,0.29957544]
[1625277322565,4.82688,33676.0,33675.0,0.29957544]
[1625277322665,4.82688,33676.0,33675.0,0.24057544]
[1625277322765,4.82688,33676.0,33673.0,0.59]
[1625277322867,0.48115088,33674.0,33673.0,0.59]
[1625277326421,0.54015088,33674.0,33673.0,0.59]
[1625277329777,0.48115088,33674.0,33673.0,0.59]
[1625277331985,0.75531088,33674.0,33673.0,0.59]
[1625277334540,0.48115088,33674.0,33673.0,0.91479]
[1625277334841,0.48115088,33674.0,33673.0,0.85579]
[1625277335042,5.00845088,33674.0,33673.0,0.85579]
[1625277335443,5.06745088,33674.0,33673.0,0.85579]
[1625277335544,5.00845088,33674.0,33673.0,0.85579]
[1625277335744,5.06745088,33674.0,33673.0,0.85579]
[1625277335896,5.00845088,33674.0,33673.0,0.59]
[1625277337846,5.00845088,33674.0,33673.0,0.649]
[1625277337947,5.00845088,33674.0,33673.0,0.59]
[1625277338148,5.00845088,33674.0,33673.0,0.59703922]
[1625277339002,5.06745088,33674.0,33673.0,0.59]
[1625277339103,5.29586088,33674.0,33673.0,0.59]
[1625277339555,5.29586088,33674.0,33673.0,0.59703967]
[1625277340056,5.29586088,33674.0,33673.0,0.59]
[1625277341361,5.29586088,33674.0,33673.0,0.59703972]
[1625277341464,5.35486088,33674.0,33673.0,0.59703972]
[1625277343515,5.29586088,33674.0,33673.0,0.59703972]
[1625277343615,5.35486088,33674.0,33673.0,0.59703972]
[1625277343714,5.29586088,33674.0,33673.0,0.59703972]
[1625277343815,5.35486088,33674.0,33673.0,0.59703972]
[1625277343918,5.29586088,33674.0,33673.0,0.59703972]
[1625277344618,5.35486088,33674.0,33673.0,0.59703972]
[1625277344719,5.29586088,33674.0,33673.0,0.59703972]
[1625277344870,5.29586088,33674.0,33673.0,0.25703972]
[1625277345369,4.95586088,33674.0,33673.0,0.25703972]
[1625277345520,4.95586088,33674.0,33673.0,0.08703972]
[1625277345970,4.78586088,33674.0,33673.0,0.08703972]
[1625277346172,4.78586088,33674.0,33673.0,0.00703972]
[1625277346574,0.28741,33674.0,33673.0,0.00703972]
[1625277346720,0.24057544,33676.0,33673.0,0.3559]
[1625277347020,0.24057544,33676.0,33675.0,0.24057544]
[1625277347120,0.24057544,33676.0,33675.0,0.29957544]
[1625277347269,0.24057544,33676.0,33675.0,0.30661126]
[1625277348321,5.33487544,33676.0,33675.0,0.30661126]
[1625277349127,0.24057544,33676.0,33675.0,0.30661126]
[1625277349625,0.24057544,33676.0,33675.0,0.24761126]
[1625277350077,5.41327544,33676.0,33675.0,0.24761126]
[1625277353136,5.41327544,33676.0,33675.0,0.30661126]
[1625277353239,5.41327544,33676.0,33675.0,0.24761126]
[1625277353436,5.41327544,33676.0,33675.0,0.30661126]
[1625277353536,5.41327544,33676.0,33675.0,0.24761126]
[1625277353685,5.41327544,33676.0,33675.0,0.30661126]
[1625277355891,0.24057544,33676.0,33675.0,0.30661126]
[1625277356741,0.057,33687.0,33675.0,0.30661126]
[1625277356842,0.057,33692.0,33675.0,0.36561126]
[1625277356943,0.03478765,43595.0,33675.0,0.36561126]
[1625277357045,0.24057544,33690.0,33688.0,0.48115088]
[1625277357147,0.24057544,33690.0,33688.0,0.70003088]
[1625277357394,0.24057544,33690.0,33688.0,0.7660652]
[1625277357594,0.24057544,33690.0,33689.0,0.00703408]
[1625277357747,0.24057544,33690.0,33689.0,0.06603408]
[1625277358347,4.55137544,33690.0,33689.0,0.06603408]
[1625277360002,4.55137544,33690.0,33689.0,0.059]
[1625277360200,4.55137544,33690.0,33688.0,0.70003088]
[1625277360450,4.61037544,33690.0,33688.0,0.70003088]
[1625277360550,4.61037544,33690.0,33688.0,0.48115088]
[1625277361603,4.66937544,33690.0,33688.0,0.48115088]
[1625277362106,0.01028543,33689.0,33688.0,0.24057544]
[1625277362254,0.12828543,33689.0,33688.0,0.24057544]
[1625277362557,0.12828543,33689.0,33682.0,0.24057544]
[1625277362705,0.12828543,33689.0,33675.0,0.24057544]
[1625277362809,0.12828543,33689.0,33675.0,0.29957544]
[1625277362956,0.01028556,33688.0,33675.0,0.29957544]
[1625277363055,0.24057544,33676.0,33675.0,0.29957544]
[1625277363156,5.05062544,33676.0,33675.0,0.29957544]
[1625277363404,5.05062544,33676.0,33675.0,0.30660805]
[1625277363910,5.05062544,33676.0,33675.0,0.24760805]
[1625277364263,5.05062544,33676.0,33675.0,0.00703261]
[1625277364762,5.05062544,33676.0,33671.0,0.00703336]
[1625277364864,5.05062544,33676.0,33671.0,0.06603336]
[1625277365063,0.24057544,33672.0,33671.0,0.06603336]
[1625277378188,0.24057544,33672.0,33671.0,0.059]
[1625277378388,0.24057544,33672.0,33671.0,0.06603764]
[1625277380042,0.24057544,33672.0,33671.0,0.15370637]
[1625277380492,0.24057544,33672.0,33671.0,0.06603764]
[1625277381850,0.24057544,33672.0,33671.0,0.67974797]
[1625277382547,0.24057544,33672.0,33671.0,0.59207507]
[1625277382647,0.24057544,33672.0,33671.0,0.89982507]
[1625277382949,0.24057544,33672.0,33671.0,0.8998549]
[1625277383398,0.24057544,33672.0,33671.0,1.60127049]
[1625277385002,0.24057544,33672.0,33671.0,1.66027049]
[1625277385604,0.24057544,33672.0,33671.0,2.71231263]
[1625277389514,0.24057544,33672.0,33671.0,2.65331263]
[1625277389664,0.24057544,33672.0,33671.0,1.60127049]
[1625277390015,0.24057544,33672.0,33671.0,1.25054851]
[1625277390217,0.24057544,33672.0,33671.0,1.30954851]
[1625277390466,0.24057544,33672.0,33671.0,0.43278764]
[1625277390615,0.24057544,33672.0,33671.0,0.06603764]
[1625277391517,0.24057544,33672.0,33671.0,0.00703764]
[1625277393220,0.24057544,33672.0,33671.0,0.06603764]
[1625277393320,0.24057544,33672.0,33671.0,0.00703764]
[1625277393423,0.24057544,33672.0,33671.0,0.06603764]
[1625277395123,0.24057544,33672.0,33671.0,0.34835764]
[1625277396380,0.24057544,33672.0,33671.0,0.96206073]
[1625277397277,0.24057544,33672.0,33671.0,0.87438886]
[1625277398180,0.24057544,33672.0,33671.0,0.34835764]
[1625277398330,0.24057544,33672.0,33671.0,0.06603764]
[1625277409304,0.24057544,33672.0,33671.0,0.15372868]
[1625277409956,0.24057544,33672.0,33671.0,0.06603764]
[1625277412010,0.24057544,33672.0,33671.0,0.25928764]
[1625277415666,0.24057544,33672.0,33671.0,0.06603764]
[1625277423480,0.24057544,33672.0,33671.0,0.15384567]
[1625277424984,0.24057544,33672.0,33671.0,0.32948028]
[1625277429693,0.24057544,33672.0,33671.0,0.15384567]
[1625277431250,0.24057544,33672.0,33671.0,0.06603764]
[1625277435411,0.24057544,33672.0,33671.0,0.15386111]
[1625277437312,0.24057544,33672.0,33671.0,0.06603764]
[1625277437612,0.24057544,33672.0,33671.0,0.15386465]
[1625277440018,0.24057544,33672.0,33671.0,0.32952008]
[1625277440321,0.24057544,33672.0,33671.0,0.38852008]
[1625277440721,0.24057544,33672.0,33671.0,0.65201449]
[1625277441172,0.24057544,33672.0,33671.0,1.35463652]
[1625277441624,0.24057544,33672.0,33671.0,2.40852947]
[1625277443430,0.24057544,33672.0,33671.0,3.63797379]
[1625277444931,0.24057544,33672.0,33671.0,2.40852947]
[1625277445384,0.24057544,33672.0,33671.0,3.63788368]
[1625277448838,0.24057544,33672.0,33671.0,5.04315261]
[1625277451493,0.24057544,33672.0,33671.0,3.63788368]
[1625277456112,0.24057544,33672.0,33671.0,2.40852947]
[1625277457513,0.24057544,33672.0,33671.0,3.63754296]
[1625277458014,0.18157544,33672.0,33671.0,3.63754296]
[1625277458115,0.18157544,33672.0,33671.0,3.57854296]
[1625277458214,0.18157544,33672.0,33671.0,5.04208496]
[1625277459569,0.18157544,33672.0,33671.0,3.63754296]
[1625277459668,0.24057544,33676.0,33671.0,3.63754296]
[1625277459920,0.24057544,33676.0,33675.0,0.52662968]
[1625277460019,0.24057544,33676.0,33675.0,0.64462968]
[1625277460169,0.24057544,33676.0,33675.0,0.65167116]
[1625277461374,0.24057544,33676.0,33675.0,1.3537662]
[1625277461621,0.24057544,33676.0,33675.0,1.59434164]
[1625277461821,0.24057544,33676.0,33675.0,1.2432833]
[1625277462423,0.24057544,33676.0,33675.0,0.8922466]
[1625277462873,0.24057544,33676.0,33675.0,0.89218315]
[1625277463227,0.24057544,33676.0,33675.0,0.62889945]
[1625277464578,0.24057544,33676.0,33675.0,0.45337737]
[1625277464830,0.24057544,33676.0,33675.0,0.39437737]
[1625277465932,0.24057544,33676.0,33675.0,0.45337737]
[1625277468036,0.24057544,33676.0,33675.0,0.36561692]
[1625277468288,0.24057544,33676.0,33675.0,0.30661692]
[1625277469344,0.24057544,33676.0,33675.0,0.36561692]
[1625277469442,0.24057544,33676.0,33675.0,0.30661692]
[1625277469542,0.24057544,33676.0,33675.0,0.24761692]
[1625277472901,0.24057544,33676.0,33675.0,0.30661692]
[1625277484328,0.24057544,33676.0,33675.0,0.60730692]
[1625277488741,4.75127544,33676.0,33675.0,0.60730692]
[1625277489995,0.24057544,33676.0,33675.0,0.60730692]
[1625277493703,0.24057544,33676.0,33675.0,0.30661692]
[1625277493954,0.24057544,33676.0,33675.0,0.24761692]
[1625277494054,0.25083358,33676.0,33675.0,0.24761692]
[1625277496762,0.24057544,33676.0,33675.0,0.24761692]
[1625277497511,0.25083365,33676.0,33675.0,0.24761692]
[1625277504024,0.24057544,33676.0,33675.0,0.24761692]
[1625277504273,0.25083331,33676.0,33675.0,0.24761692]
[1625277508637,0.24057544,33676.0,33675.0,0.24761692]
[1625277509434,0.25083333,33676.0,33675.0,0.24761692]
[1625277510837,0.25083333,33676.0,33675.0,0.30661692]
[1625277510937,0.25083333,33676.0,33675.0,0.36561692]
[1625277511087,0.24057544,33676.0,33675.0,0.36561692]
[1625277513794,0.24057544,33676.0,33675.0,0.62902906]
[1625277514043,0.24057544,33682.0,33675.0,5.47902906]
[1625277514447,0.24057544,33682.0,33675.0,1.59483302]
[1625277514545,0.24057544,33682.0,33676.0,0.00705012]
[1625277514643,0.24057544,33682.0,33676.0,0.12505012]
[1625277514994,0.24057544,33682.0,33677.0,0.00704988]
[1625277515198,0.24057544,33682.0,33679.0,0.89844069]
[1625277515296,0.24057544,33682.0,33679.0,0.95744069]
[1625277515546,0.24057544,33682.0,33680.0,0.00704981]
[1625277515645,0.24057544,33682.0,33680.0,0.06604981]
[1625277515998,0.24057544,33682.0,33681.0,0.24057544]
[1625277516199,0.24057544,33682.0,33681.0,0.24762538]
[1625277518448,0.24057544,33682.0,33681.0,0.30662538]
[1625277520553,4.59397544,33682.0,33681.0,0.30662538]
[1625277520654,0.24057544,33682.0,33681.0,0.30662538]
[1625277523405,0.24057544,33682.0,33681.0,0.29957544]
[1625277523655,0.24057544,33682.0,33681.0,0.3066248]
[1625277524055,0.24057544,33682.0,33681.0,0.3656248]
[1625277531076,4.95457544,33682.0,33681.0,0.3656248]
[1625277532881,0.24057544,33682.0,33681.0,0.3656248]
[1625277534383,0.24057544,33682.0,33681.0,0.6623348]
[1625277536732,1.16437544,33685.0,33681.0,0.6623348]
[1625277537232,1.16437544,33685.0,33682.0,0.00705163]
[1625277537331,1.16437544,33685.0,33682.0,0.06605163]
[1625277537432,1.16437544,33685.0,33682.0,0.12505163]
[1625277537632,0.24057544,33685.0,33682.0,0.12505163]
[1625277537732,0.24057544,33685.0,33683.0,0.00705166]
[1625277537833,0.24057544,33685.0,33683.0,0.12505166]
[1625277538134,0.24057544,33685.0,33684.0,0.24057544]
[1625277538236,0.24057544,33685.0,33684.0,0.29957544]
[1625277538334,0.24057544,33685.0,33684.0,0.36562713]
[1625277540940,0.24057544,33685.0,33684.0,0.30662713]
[1625277548463,0.25080769,33685.0,33684.0,0.30662713]
[1625277550162,0.25080769,33685.0,33684.0,0.36562713]
[1625277550412,0.24057544,33685.0,33684.0,0.36562713]
[1625277560282,4.73807544,33685.0,33684.0,0.36562713]
[1625277561486,0.24057544,33685.0,33684.0,0.36562713]
[1625277566496,4.53767544,33685.0,33684.0,0.36562713]
[1625277567349,4.53767544,33685.0,33684.0,0.30662713]
[1625277568199,4.59667544,33685.0,33684.0,0.30662713]
[1625277568500,4.59667544,33685.0,33684.0,0.24762713]
[1625277569451,4.60689842,33685.0,33684.0,0.24762713]
[1625277570354,4.60689842,33685.0,33684.0,0.00705169]
[1625277570806,4.60689842,33685.0,33682.0,0.00707152]
[1625277571106,4.60689842,33685.0,33684.0,0.00707152]
[1625277571307,4.60689842,33685.0,33682.0,0.00707152]
[1625277571511,4.81572995,33685.0,33682.0,0.00707152]
[1625277571610,0.01022322,33684.0,33682.0,0.00707152]
[1625277571708,0.30202322,33684.0,33682.0,0.00707152]
[1625277571809,0.36102322,33684.0,33682.0,0.00707152]
[1625277572160,0.3508,33684.0,33682.0,0.00707152]
[1625277572361,0.24057544,33683.0,33682.0,0.00707152]
[1625277572561,0.29957544,33683.0,33682.0,0.00707152]
[1625277573312,0.35857544,33683.0,33682.0,0.00707152]
[1625277573461,0.36879902,33683.0,33682.0,0.00707152]
[1625277573563,0.30979902,33683.0,33682.0,0.00707152]
[1625277573663,0.36879902,33683.0,33682.0,0.00707152]
[1625277574063,0.57756868,33683.0,33682.0,0.00707152]
[1625277574166,0.51856868,33683.0,33682.0,0.00707152]
[1625277574314,0.57756868,33683.0,33682.0,0.00707152]
[1625277574514,0.5083451,33683.0,33682.0,0.00707152]
[1625277574716,0.29957544,33683.0,33682.0,0.00707152]
[1625277575016,0.30979916,33683.0,33682.0,0.00707152]
[1625277575217,0.51820469,33683.0,33682.0,0.00707152]
[1625277575317,0.50798097,33683.0,33682.0,0.00707152]
[1625277575617,0.29957544,33683.0,33682.0,0.00707152]
[1625277578328,0.50778923,33683.0,33682.0,0.00707152]
[1625277578529,0.50778923,33683.0,33681.0,0.24057544]
[1625277581838,0.50778923,33683.0,33675.0,0.24057544]
[1625277581939,0.50778923,33683.0,33673.0,0.26335355]
[1625277582037,0.50778923,33683.0,33673.0,0.059]
[1625277582187,0.50778923,33683.0,33674.0,0.00707326]
[1625277582288,0.50778923,33683.0,33674.0,0.06607326]
[1625277582439,0.48115088,33675.0,33674.0,0.06607326]
[1625277582590,0.77205088,33675.0,33674.0,0.06607326]
[1625277582839,5.77875088,33675.0,33674.0,0.06607326]
[1625277582938,5.77875088,33675.0,33674.0,0.00707326]
[1625277583243,5.77875088,33675.0,33672.0,0.00707349]
[1625277583339,5.77875088,33675.0,33672.0,0.06607349]
[1625277583790,5.77875088,33675.0,33673.0,0.00707578]
[1625277583992,5.77875088,33675.0,33673.0,0.06607578]
[1625277584345,5.77875088,33675.0,33674.0,0.00707573]
[1625277584894,5.77875088,33675.0,33672.0,0.00707589]
[1625277584994,5.77875088,33675.0,33672.0,0.06607589]
[1625277585445,5.77875088,33675.0,33673.0,0.00707589]
[1625277585546,5.77875088,33675.0,33673.0,0.06607589]
[1625277585947,5.77875088,33675.0,33674.0,0.00707585]
[1625277586496,5.77875088,33675.0,33672.0,0.00707585]
[1625277586597,5.77875088,33675.0,33672.0,0.06607585]
[1625277586697,5.77875088,33675.0,33674.0,0.00707585]
[1625277586953,5.77875088,33675.0,33673.0,0.00707585]
[1625277587150,5.77875088,33675.0,33673.0,0.06607585]
[1625277587248,5.77875088,33675.0,33673.0,0.059]
[1625277587550,5.77875088,33675.0,33674.0,0.00707593]
[1625277588050,5.77875088,33675.0,33672.0,0.00707585]
[1625277588150,5.77875088,33675.0,33672.0,0.06607585]
[1625277588302,5.77875088,33675.0,33674.0,0.00707585]
[1625277588552,5.77875088,33675.0,33673.0,0.00707585]
[1625277588653,5.77875088,33675.0,33673.0,0.06607585]
[1625277588852,5.77875088,33675.0,33673.0,0.059]
[1625277589102,5.77875088,33675.0,33674.0,0.00707585]
[1625277589604,5.77875088,33675.0,33672.0,0.00707591]
[1625277589703,5.77875088,33675.0,33672.0,0.06607591]
[1625277590154,5.77875088,33675.0,33673.0,0.00707595]
[1625277590255,5.77875088,33675.0,33673.0,0.06607595]
[1625277590655,5.77875088,33675.0,33674.0,0.00707599]
[1625277591256,5.77875088,33675.0,33672.0,0.00707595]
[1625277591456,5.77875088,33675.0,33674.0,0.00707595]
[1625277591756,5.77875088,33675.0,33673.0,0.00707595]
[1625277591960,5.77875088,33675.0,33673.0,0.06607595]
[1625277592057,5.77875088,33675.0,33673.0,0.059]
[1625277592257,5.77875088,33675.0,33674.0,0.00707595]
[1625277592808,5.77875088,33675.0,33671.0,0.24057544]
[1625277592809,5.77875088,33675.0,33672.0,0.00707595]
[1625277593010,5.77875088,33675.0,33672.0,0.06607595]
[1625277593360,5.77875088,33675.0,33673.0,0.0070759]
[1625277593459,5.77875088,33675.0,33673.0,0.0660759]
[1625277593862,5.77875088,33675.0,33674.0,0.00707595]
[1625277594360,5.77875088,33675.0,33672.0,0.00707595]
[1625277594462,5.77875088,33675.0,33672.0,0.06607595]
[1625277594913,5.77875088,33675.0,33673.0,0.00707595]
[1625277595113,5.77875088,33675.0,33673.0,0.06607595]
[1625277595463,5.77875088,33675.0,33674.0,0.00707595]
[1625277595963,5.77875088,33675.0,33672.0,0.00707614]
[1625277596063,5.77875088,33675.0,33672.0,0.06607614]
[1625277596563,5.77875088,33675.0,33673.0,0.0070761]
[1625277596665,5.77875088,33675.0,33673.0,0.0660761]
[1625277597017,5.77875088,33675.0,33674.0,0.00707597]
[1625277597566,5.77875088,33675.0,33672.0,0.00707601]
[1625277597716,5.77875088,33675.0,33672.0,0.06607601]
[1625277598117,5.77875088,33675.0,33673.0,0.00707601]
[1625277598266,5.77875088,33675.0,33673.0,0.06607601]
[1625277598669,5.77875088,33675.0,33674.0,0.0070759]
[1625277599218,5.77875088,33675.0,33672.0,0.00707583]
[1625277599320,5.77875088,33675.0,33672.0,0.06607583]
[1625277599522,5.77875088,33675.0,33674.0,0.00707244]
[1625277599770,5.77875088,33675.0,33673.0,0.00707244]
[1625277599871,5.77875088,33675.0,33673.0,0.06607244]
[1625277599972,5.77875088,33675.0,33673.0,0.059]
[1625277600322,5.77875088,33675.0,33674.0,0.00707247]
[1625277600773,5.77875088,33675.0,33672.0,0.00707247]
[1625277600922,5.77875088,33675.0,33672.0,0.06607247]
[1625277601326,5.77875088,33675.0,33673.0,0.00707236]
[1625277601425,0.77205088,33675.0,33673.0,0.06607236]
[1625277601527,0.48115088,33675.0,33673.0,0.06607236]
[1625277601624,0.24057544,33675.0,33673.0,0.12507236]
[1625277601924,0.24057544,33675.0,33674.0,0.00707211]
[1625277602027,0.24057544,33675.0,33674.0,0.12507211]
[1625277604683,0.24057544,33675.0,33674.0,0.36686211]
[1625277611146,0.24057544,33675.0,33674.0,0.12507211]
[1625277613501,0.49053544,33675.0,33674.0,0.06607211]
[1625277613599,0.49053544,33675.0,33674.0,0.00707211]
[1625277614450,0.49053544,33675.0,33670.0,0.00707901]
[1625277614551,0.49053544,33675.0,33670.0,0.06607901]
[1625277614651,0.48115088,33671.0,33670.0,0.059]
[1625277614952,0.48115088,33671.0,33670.0,0.06607898]
[1625277615156,4.56325088,33671.0,33670.0,0.06607898]
[1625277618561,0.48115088,33671.0,33670.0,0.06607898]
[1625277620064,5.07615088,33671.0,33670.0,0.06607898]
[1625277622121,0.48115088,33671.0,33670.0,0.06607898]
[1625277623124,4.79865088,33671.0,33670.0,0.06607898]
[1625277625077,0.48115088,33671.0,33670.0,0.06607898]
[1625277625479,0.48115088,33671.0,33670.0,0.32194898]
[1625277625632,0.48115088,33671.0,33670.0,0.40967014]
[1625277626180,0.48115088,33671.0,33670.0,0.90726024]
[1625277626728,0.48115088,33671.0,33670.0,1.14783568]
[1625277627130,4.27035088,33671.0,33670.0,1.14783568]
[1625277628286,4.27035088,33671.0,33670.0,1.14810266]
[1625277628385,4.47195088,33671.0,33670.0,1.08910266]
[1625277628537,4.47195088,33671.0,33670.0,1.44033692]